[Event "Late-Titled-Tuesday-Blitz-February-20-2024"]
[Site "Chess.com"]
[Date "2024.02.20"]
[Round "11"]
[White "KorolDimitriy75"]
[Black "ACollins05"]
[Result "1-0"]
[WhiteElo "2436"]
[BlackElo "2566"]
[TimeControl "180+1"]
[EndTime "16:03:51 PST"]
[Termination "KorolDimitriy75 won by resignation"]

1. d4 {[%clk 0:03:00.9]} 1... d5 {[%clk 0:02:55.6]} 2. c4 {[%clk 0:03:01.1]}
2... e6 {[%clk 0:02:55.7]} 3. Nc3 {[%clk 0:03:01.3]} 3... Be7 {[%clk 0:02:55.7]}
4. cxd5 {[%clk 0:03:01.1]} 4... exd5 {[%clk 0:02:56.6]} 5. Bf4 {[%clk
0:03:01.3]} 5... c6 {[%clk 0:02:56.4]} 6. e3 {[%clk 0:03:01.7]} 6... Bf5 {[%clk
0:02:56.1]} 7. g4 {[%clk 0:03:00.8]} 7... Be6 {[%clk 0:02:56.6]} 8. h4 {[%clk
0:02:57.9]} 8... Bxh4 {[%clk 0:02:53.5]} 9. Qb3 {[%clk 0:02:55.8]} 9... g5
{[%clk 0:02:53.3]} 10. Be5 {[%clk 0:02:43.3]} 10... f6 {[%clk 0:02:53.3]} 11.
Qxb7 {[%clk 0:02:40.6]} 11... fxe5 {[%clk 0:02:51.7]} 12. Qxa8 {[%clk
0:02:39.8]} 12... exd4 {[%clk 0:02:49.3]} 13. exd4 {[%clk 0:02:40.7]} 13... Nh6
{[%clk 0:02:34]} 14. Nf3 {[%clk 0:02:36.5]} 14... O-O {[%clk 0:02:27.2]} 15.
Nxh4 {[%clk 0:02:32.1]} 15... gxh4 {[%clk 0:02:28.1]} 16. Qb7 {[%clk 0:02:18.7]}
16... Nxg4 {[%clk 0:02:23.2]} 17. Rg1 {[%clk 0:02:14.8]} 17... Kh8 {[%clk
0:02:17.2]} 18. O-O-O {[%clk 0:02:11.5]} 18... Qb6 {[%clk 0:02:04.3]} 19. Qe7
{[%clk 0:01:41.7]} 19... Rxf2 {[%clk 0:01:49.3]} 20. Be2 {[%clk 0:01:41.7]}
20... Bd7 {[%clk 0:00:59.9]} 21. Rxg4 {[%clk 0:01:37.1]} 21... Bxg4 {[%clk
0:00:55.3]} 22. Qe5+ {[%clk 0:01:36.9]} 22... Kg8 {[%clk 0:00:52.5]} 23. Qg5+
{[%clk 0:01:37]} 23... Kh8 {[%clk 0:00:51.9]} 24. Qxg4 {[%clk 0:01:36.4]} 24...
Qd8 {[%clk 0:00:46.9]} 25. Rg1 {[%clk 0:01:29]} 25... Rf7 {[%clk 0:00:43]} 26.
Qh5 {[%clk 0:01:13.1]} 26... Qf6 {[%clk 0:00:31.1]} 27. Rf1 {[%clk 0:01:07]}
27... Qxf1+ {[%clk 0:00:20.9]} 28. Bxf1 {[%clk 0:01:07.9]} 28... Rxf1+ {[%clk
0:00:20.9]} 29. Kd2 {[%clk 0:01:06.8]} 29... Rf8 {[%clk 0:00:21.4]} 30. Qxh4
{[%clk 0:01:05.7]} 30... Kg7 {[%clk 0:00:17]} 31. Qe7+ {[%clk 0:01:03.9]} 31...
Rf7 {[%clk 0:00:17]} 32. Qe5+ {[%clk 0:01:03.9]} 1-0

[Event "Late-Titled-Tuesday-Blitz-February-20-2024"]
[Site "Chess.com"]
[Date "2024.02.20"]
[Round "11"]
[White "Sanyura"]
[Black "Piotrek1979"]
[Result "0-1"]
[WhiteElo "2605"]
[BlackElo "2464"]
[TimeControl "180+1"]
[EndTime "16:03:57 PST"]
[Termination "Piotrek1979 won by resignation"]

1. e4 {[%clk 0:02:55.8]} 1... c5 {[%clk 0:02:58.8]} 2. Nf3 {[%clk 0:02:55.8]}
2... Nc6 {[%clk 0:02:59.4]} 3. d4 {[%clk 0:02:56]} 3... cxd4 {[%clk 0:03:00.3]}
4. Nxd4 {[%clk 0:02:56.7]} 4... g6 {[%clk 0:03:00.9]} 5. c4 {[%clk 0:02:52.4]}
5... Nf6 {[%clk 0:02:59.7]} 6. Nc3 {[%clk 0:02:52.6]} 6... d6 {[%clk 0:03:00.1]}
7. Be2 {[%clk 0:02:49]} 7... Nxd4 {[%clk 0:03:00.1]} 8. Qxd4 {[%clk 0:02:49]}
8... Bg7 {[%clk 0:03:01]} 9. Be3 {[%clk 0:02:48.1]} 9... O-O {[%clk 0:03:01.3]}
10. Qd2 {[%clk 0:02:48.7]} 10... a5 {[%clk 0:03:00.8]} 11. f3 {[%clk 0:02:45]}
11... a4 {[%clk 0:03:00.5]} 12. O-O {[%clk 0:02:45.5]} 12... Qa5 {[%clk
0:02:59.4]} 13. Rfd1 {[%clk 0:02:45.6]} 13... Be6 {[%clk 0:02:58.5]} 14. Rac1
{[%clk 0:02:45.1]} 14... Rfc8 {[%clk 0:02:57]} 15. Nb5 {[%clk 0:02:08.7]} 15...
Qxd2 {[%clk 0:02:53.7]} 16. Rxd2 {[%clk 0:02:08.9]} 16... Nd7 {[%clk 0:02:45.6]}
17. Nd4 {[%clk 0:02:01]} 17... Nc5 {[%clk 0:02:39]} 18. Nxe6 {[%clk 0:02:00.8]}
18... fxe6 {[%clk 0:02:37.5]} 19. h4 {[%clk 0:01:50]} 19... h6 {[%clk
0:02:35.8]} 20. g4 {[%clk 0:01:48.6]} 20... Kf7 {[%clk 0:02:34.9]} 21. Kg2
{[%clk 0:01:48.8]} 21... Ra6 {[%clk 0:02:19.8]} 22. Rcc2 {[%clk 0:01:21.2]}
22... Rb6 {[%clk 0:02:18.5]} 23. Kf2 {[%clk 0:01:00.3]} 23... Rb4 {[%clk
0:02:17.9]} 24. h5 {[%clk 0:00:38.7]} 24... g5 {[%clk 0:02:17.1]} 25. Ke1 {[%clk
0:00:16.9]} 25... Be5 {[%clk 0:02:14.1]} 26. Kd1 {[%clk 0:00:17.1]} 26... Kf6
{[%clk 0:02:09]} 27. Kc1 {[%clk 0:00:17.4]} 27... Bf4 {[%clk 0:02:08.3]} 28.
Bxf4 {[%clk 0:00:17]} 28... gxf4 {[%clk 0:02:07.9]} 29. Kb1 {[%clk 0:00:16.6]}
29... e5 {[%clk 0:02:05.2]} 30. Rc3 {[%clk 0:00:14.5]} 30... Kg5 {[%clk
0:02:05]} 31. Kc2 {[%clk 0:00:14.3]} 31... Rc6 {[%clk 0:02:03.9]} 32. Rd5 {[%clk
0:00:13.4]} 32... Kh4 {[%clk 0:01:58.5]} 33. Bd1 {[%clk 0:00:11.3]} 33... Rcb6
{[%clk 0:01:48.5]} 34. b3 {[%clk 0:00:08.3]} 34... axb3+ {[%clk 0:01:48.5]} 35.
axb3 {[%clk 0:00:08.8]} 35... Nxb3 {[%clk 0:01:42.1]} 36. Rb5 {[%clk 0:00:08.9]}
36... Nd4+ {[%clk 0:01:41.9]} 37. Kd3 {[%clk 0:00:09.4]} 37... Nxb5 {[%clk
0:01:42.4]} 38. cxb5 {[%clk 0:00:10.3]} 38... Rd4+ {[%clk 0:01:42.1]} 39. Ke2
{[%clk 0:00:09.1]} 39... Rxb5 {[%clk 0:01:43]} 40. Rc7 {[%clk 0:00:01.5]} 40...
Rb2+ {[%clk 0:01:42.2]} 41. Bc2 {[%clk 0:00:02.1]} 41... b5 {[%clk 0:01:38.3]}
42. Ke1 {[%clk 0:00:02.2]} 42... Rc4 {[%clk 0:01:38.3]} 0-1

[Event "Late-Titled-Tuesday-Blitz-February-20-2024"]
[Site "Chess.com"]
[Date "2024.02.20"]
[Round "11"]
[White "AlexeiShirov"]
[Black "vugarrasulov"]
[Result "1-0"]
[WhiteElo "2858"]
[BlackElo "2926"]
[TimeControl "180+1"]
[EndTime "16:04:05 PST"]
[Termination "AlexeiShirov won by resignation"]

1. e4 {[%clk 0:03:00.9]} 1... e5 {[%clk 0:02:57]} 2. Nf3 {[%clk 0:03:00.8]} 2...
Nc6 {[%clk 0:02:57.6]} 3. Bb5 {[%clk 0:02:59.9]} 3... Nf6 {[%clk 0:02:57.9]} 4.
O-O {[%clk 0:02:57.3]} 4... Nxe4 {[%clk 0:02:57.8]} 5. Re1 {[%clk 0:02:56.3]}
5... Nd6 {[%clk 0:02:57.5]} 6. a4 {[%clk 0:02:50.5]} 6... Be7 {[%clk 0:02:50]}
7. Nc3 {[%clk 0:02:48]} 7... O-O {[%clk 0:02:46.8]} 8. d4 {[%clk 0:02:42.7]}
8... e4 {[%clk 0:02:47.1]} 9. Nxe4 {[%clk 0:02:39]} 9... Nxe4 {[%clk 0:02:48]}
10. Rxe4 {[%clk 0:02:37.4]} 10... d5 {[%clk 0:02:48.7]} 11. Re1 {[%clk
0:02:33.6]} 11... Bd6 {[%clk 0:02:47.7]} 12. c3 {[%clk 0:02:31.2]} 12... Bg4
{[%clk 0:02:44]} 13. h3 {[%clk 0:02:29.6]} 13... Bh5 {[%clk 0:02:44.4]} 14. g4
{[%clk 0:02:25.8]} 14... Bg6 {[%clk 0:02:44.2]} 15. Ne5 {[%clk 0:02:09.3]} 15...
Nxe5 {[%clk 0:02:33.6]} 16. dxe5 {[%clk 0:02:08.8]} 16... Bc5 {[%clk 0:02:34]}
17. Be3 {[%clk 0:02:08]} 17... Bxe3 {[%clk 0:02:31.8]} 18. Rxe3 {[%clk 0:02:08]}
18... c6 {[%clk 0:02:31.1]} 19. Bf1 {[%clk 0:02:07.7]} 19... f5 {[%clk
0:02:27.5]} 20. e6 {[%clk 0:01:46]} 20... Qd6 {[%clk 0:02:22]} 21. e7 {[%clk
0:01:42.2]} 21... Rfe8 {[%clk 0:02:19.9]} 22. Qe2 {[%clk 0:01:42]} 22... f4
{[%clk 0:02:16.8]} 23. Re6 {[%clk 0:01:37.2]} 23... Qd7 {[%clk 0:02:13.5]} 24.
Re1 {[%clk 0:01:34.6]} 24... Bf7 {[%clk 0:01:59]} 25. Re5 {[%clk 0:01:33.3]}
25... Rac8 {[%clk 0:01:56.8]} 26. Qf3 {[%clk 0:01:32.1]} 26... Qd6 {[%clk
0:01:57]} 27. Bd3 {[%clk 0:01:29.9]} 27... Rc7 {[%clk 0:01:54.1]} 28. Qe2 {[%clk
0:01:22]} 28... c5 {[%clk 0:01:53.1]} 29. Bb5 {[%clk 0:01:21.4]} 29... Rc6
{[%clk 0:01:43]} 30. Bxc6 {[%clk 0:01:20.6]} 30... bxc6 {[%clk 0:01:43.9]} 31.
Qf3 {[%clk 0:01:15.9]} 31... d4 {[%clk 0:01:41.9]} 32. Qxf4 {[%clk 0:01:04.1]}
32... Rxe7 {[%clk 0:01:40.1]} 33. Qf5 {[%clk 0:00:56.2]} 33... Rxe5 {[%clk
0:01:15.9]} 34. Qxe5 {[%clk 0:00:56]} 34... Qd8 {[%clk 0:01:11.7]} 35. Qe7
{[%clk 0:00:51.2]} 35... Qb8 {[%clk 0:01:06.4]} 36. Qxc5 {[%clk 0:00:41.4]}
36... d3 {[%clk 0:01:04.9]} 37. Qd4 {[%clk 0:00:40.2]} 37... Bg6 {[%clk
0:01:04.1]} 38. Re7 {[%clk 0:00:38.5]} 38... Qf8 {[%clk 0:01:00.3]} 39. Rd7
{[%clk 0:00:38.4]} 1-0

[Event "Late-Titled-Tuesday-Blitz-February-20-2024"]
[Site "Chess.com"]
[Date "2024.02.20"]
[Round "11"]
[White "Herman-NY"]
[Black "Cristi_Coca"]
[Result "1-0"]
[WhiteElo "2516"]
[BlackElo "2385"]
[TimeControl "180+1"]
[EndTime "16:04:05 PST"]
[Termination "Herman-NY won by resignation"]

1. e4 {[%clk 0:03:00.9]} 1... c5 {[%clk 0:03:00]} 2. Nf3 {[%clk 0:03:01]} 2...
e6 {[%clk 0:03:00]} 3. d4 {[%clk 0:03:00.9]} 3... cxd4 {[%clk 0:03:00.9]} 4.
Nxd4 {[%clk 0:02:59.5]} 4... a6 {[%clk 0:03:01.6]} 5. Bd3 {[%clk 0:02:59]} 5...
Bc5 {[%clk 0:03:00.9]} 6. Nb3 {[%clk 0:02:59.3]} 6... Ba7 {[%clk 0:03:00.2]} 7.
Qg4 {[%clk 0:02:58.6]} 7... Nf6 {[%clk 0:02:58.1]} 8. Qg3 {[%clk 0:02:58.7]}
8... h5 {[%clk 0:02:55.7]} 9. Bg5 {[%clk 0:02:57.6]} 9... d6 {[%clk 0:02:37.4]}
10. Nc3 {[%clk 0:02:53.7]} 10... Nc6 {[%clk 0:02:35.3]} 11. O-O-O {[%clk
0:02:53.2]} 11... Qc7 {[%clk 0:02:30.8]} 12. Rhe1 {[%clk 0:02:49.9]} 12... Bd7
{[%clk 0:02:29.3]} 13. Bh4 {[%clk 0:02:12.5]} 13... Ng4 {[%clk 0:02:20.9]} 14.
Re2 {[%clk 0:02:08.6]} 14... Nd4 {[%clk 0:02:08.9]} 15. Nxd4 {[%clk 0:02:04]}
15... Bxd4 {[%clk 0:02:09.8]} 16. h3 {[%clk 0:01:53.3]} 16... Ne5 {[%clk
0:02:04.3]} 17. f4 {[%clk 0:01:38.1]} 17... Bxc3 {[%clk 0:01:56.3]} 18. bxc3
{[%clk 0:01:38.4]} 18... Nxd3+ {[%clk 0:01:36.9]} 19. Rxd3 {[%clk 0:01:34.3]}
19... Bb5 {[%clk 0:01:24.6]} 20. Qxg7 {[%clk 0:01:34.3]} 20... Rf8 {[%clk
0:01:24.4]} 21. c4 {[%clk 0:01:03.7]} 21... Qxc4 {[%clk 0:01:09.8]} 22. Rc3
{[%clk 0:00:12.5]} 22... Qxe2 {[%clk 0:00:49.5]} 23. Qf6 {[%clk 0:00:10.9]}
23... Qe1+ {[%clk 0:00:32.7]} 24. Bxe1 {[%clk 0:00:11.1]} 1-0

[Event "Late-Titled-Tuesday-Blitz-February-20-2024"]
[Site "Chess.com"]
[Date "2024.02.20"]
[Round "11"]
[White "ninguno46"]
[Black "Balla_Tamas"]
[Result "1-0"]
[WhiteElo "2529"]
[BlackElo "2396"]
[TimeControl "180+1"]
[EndTime "16:04:10 PST"]
[Termination "ninguno46 won by resignation"]

1. e4 {[%clk 0:02:38.1]} 1... c5 {[%clk 0:02:57]} 2. Nc3 {[%clk 0:02:37.6]} 2...
Nc6 {[%clk 0:02:56.8]} 3. f4 {[%clk 0:02:38.1]} 3... g6 {[%clk 0:02:56.5]} 4.
Nf3 {[%clk 0:02:38.7]} 4... Bg7 {[%clk 0:02:56.5]} 5. Bb5 {[%clk 0:02:39.2]}
5... Nd4 {[%clk 0:02:55.8]} 6. O-O {[%clk 0:02:38.3]} 6... e6 {[%clk 0:02:55.3]}
7. e5 {[%clk 0:02:31.9]} 7... Ne7 {[%clk 0:02:50.8]} 8. Nxd4 {[%clk 0:02:29.9]}
8... cxd4 {[%clk 0:02:50]} 9. Ne4 {[%clk 0:02:29.9]} 9... O-O {[%clk 0:02:49.5]}
10. d3 {[%clk 0:02:25.4]} 10... a6 {[%clk 0:02:49.3]} 11. Bc4 {[%clk 0:02:24.8]}
11... b5 {[%clk 0:02:49.7]} 12. Bb3 {[%clk 0:02:25]} 12... Bb7 {[%clk
0:02:50.3]} 13. Qe2 {[%clk 0:02:25.2]} 13... Qc7 {[%clk 0:02:34.5]} 14. Bd2
{[%clk 0:02:21]} 14... Bd5 {[%clk 0:02:28.9]} 15. Bb4 {[%clk 0:02:17.5]} 15...
Bxb3 {[%clk 0:02:25.5]} 16. Bxe7 {[%clk 0:01:58]} 16... Rfe8 {[%clk 0:02:24.7]}
17. cxb3 {[%clk 0:01:51.2]} 17... Rxe7 {[%clk 0:02:24.4]} 18. Rac1 {[%clk
0:01:50.5]} 18... Qd8 {[%clk 0:02:14.8]} 19. Nd6 {[%clk 0:01:47.6]} 19... f6
{[%clk 0:02:10.1]} 20. Rc5 {[%clk 0:01:46.6]} 20... Qf8 {[%clk 0:02:04.4]} 21.
Rfc1 {[%clk 0:01:44.9]} 21... Ree8 {[%clk 0:01:53.3]} 22. Nxe8 {[%clk 0:01:44]}
22... Rxe8 {[%clk 0:01:51.5]} 23. exf6 {[%clk 0:01:42.3]} 23... Qxf6 {[%clk
0:01:49]} 24. Qe4 {[%clk 0:01:40]} 24... h6 {[%clk 0:01:41.9]} 25. g3 {[%clk
0:01:38.3]} 25... Kh7 {[%clk 0:01:37]} 26. Rc7 {[%clk 0:01:35.6]} 26... e5
{[%clk 0:01:29]} 27. Rxd7 {[%clk 0:01:32.1]} 27... Re7 {[%clk 0:00:44]} 28. Rxe7
{[%clk 0:01:29.6]} 28... Qxe7 {[%clk 0:00:44.3]} 29. f5 {[%clk 0:01:29.1]} 29...
Bf6 {[%clk 0:00:35.6]} 30. fxg6+ {[%clk 0:01:28.2]} 30... Kg7 {[%clk 0:00:36.2]}
31. Rf1 {[%clk 0:01:24.7]} 31... Qc7 {[%clk 0:00:25.8]} 32. Kg2 {[%clk
0:01:21.8]} 32... Qc2+ {[%clk 0:00:25.2]} 33. Rf2 {[%clk 0:01:21.2]} 33... Qc7
{[%clk 0:00:25]} 34. h4 {[%clk 0:01:16.9]} 34... a5 {[%clk 0:00:24.9]} 35. Qd5
{[%clk 0:01:14.2]} 35... Kxg6 {[%clk 0:00:21.5]} 36. Qg8+ {[%clk 0:01:07.9]}
36... Kh5 {[%clk 0:00:20.9]} 37. Qe8+ {[%clk 0:01:04.2]} 37... Kg4 {[%clk
0:00:20.5]} 38. Qg6+ {[%clk 0:01:03.5]} 38... Bg5 {[%clk 0:00:20.9]} 39. hxg5
{[%clk 0:00:58.6]} 39... Qc6+ {[%clk 0:00:21.2]} 40. Qe4+ {[%clk 0:00:58.6]} 1-0

[Event "Late-Titled-Tuesday-Blitz-February-20-2024"]
[Site "Chess.com"]
[Date "2024.02.20"]
[Round "11"]
[White "ArtemDyachuk"]
[Black "sergiochess83"]
[Result "0-1"]
[WhiteElo "2672"]
[BlackElo "2914"]
[TimeControl "180+1"]
[EndTime "16:04:22 PST"]
[Termination "sergiochess83 won by resignation"]

1. d4 {[%clk 0:03:00.9]} 1... Nf6 {[%clk 0:02:56.2]} 2. c4 {[%clk 0:03:01]} 2...
g6 {[%clk 0:02:56.7]} 3. Nc3 {[%clk 0:02:58.8]} 3... d5 {[%clk 0:02:56.7]} 4.
cxd5 {[%clk 0:02:57.8]} 4... Nxd5 {[%clk 0:02:56.9]} 5. e4 {[%clk 0:02:58.3]}
5... Nxc3 {[%clk 0:02:57.1]} 6. bxc3 {[%clk 0:02:59.2]} 6... Bg7 {[%clk
0:02:57.5]} 7. Bb5+ {[%clk 0:02:59.7]} 7... c6 {[%clk 0:02:55]} 8. Ba4 {[%clk
0:03:00.2]} 8... O-O {[%clk 0:02:54.9]} 9. Nf3 {[%clk 0:03:00.3]} 9... b5 {[%clk
0:02:55.1]} 10. Bb3 {[%clk 0:03:00]} 10... a5 {[%clk 0:02:55.8]} 11. O-O {[%clk
0:02:59.9]} 11... a4 {[%clk 0:02:55]} 12. Bc2 {[%clk 0:02:59.5]} 12... c5 {[%clk
0:02:53.6]} 13. Be3 {[%clk 0:02:58.3]} 13... Bg4 {[%clk 0:02:49.1]} 14. d5
{[%clk 0:02:55.8]} 14... Nd7 {[%clk 0:02:43]} 15. Rb1 {[%clk 0:02:55]} 15... Qa5
{[%clk 0:02:39.2]} 16. h3 {[%clk 0:02:47]} 16... Bxf3 {[%clk 0:02:38.1]} 17.
Qxf3 {[%clk 0:02:47.4]} 17... Bxc3 {[%clk 0:02:28.3]} 18. Qg4 {[%clk 0:02:33.3]}
18... Rad8 {[%clk 0:01:51.3]} 19. Rfd1 {[%clk 0:02:12.9]} 19... b4 {[%clk
0:01:47.9]} 20. Qe2 {[%clk 0:02:01.7]} 20... Rc8 {[%clk 0:01:39.2]} 21. Bd3
{[%clk 0:01:58.4]} 21... Ne5 {[%clk 0:01:30.4]} 22. Bb5 {[%clk 0:01:56.7]} 22...
c4 {[%clk 0:01:26]} 23. Bc6 {[%clk 0:01:51.1]} 23... Nxc6 {[%clk 0:01:24.5]} 24.
dxc6 {[%clk 0:01:52]} 24... Rxc6 {[%clk 0:01:24.7]} 25. a3 {[%clk 0:01:46.5]}
25... b3 {[%clk 0:01:22.8]} 26. Rd5 {[%clk 0:01:41.4]} 26... Qc7 {[%clk
0:01:14.6]} 27. Bf4 {[%clk 0:01:33.6]} 27... Qc8 {[%clk 0:01:08.3]} 28. e5
{[%clk 0:01:29.2]} 28... Qf5 {[%clk 0:01:05.5]} 29. Rc1 {[%clk 0:01:25.6]} 29...
b2 {[%clk 0:01:03.4]} 30. Rxc3 {[%clk 0:01:19.7]} 30... b1=Q+ {[%clk 0:01:00.7]}
31. Bc1 {[%clk 0:01:19.5]} 31... Qfe4 {[%clk 0:00:54.8]} 32. Qd2 {[%clk
0:01:18.1]} 32... Rb6 {[%clk 0:00:44.2]} 33. Kh2 {[%clk 0:01:06.1]} 33... Rb3
{[%clk 0:00:36.1]} 34. Rd8 {[%clk 0:00:34.8]} 34... Qxe5+ {[%clk 0:00:28.2]} 35.
f4 {[%clk 0:00:35]} 35... Qxc3 {[%clk 0:00:28.1]} 36. Rxf8+ {[%clk 0:00:35.1]}
36... Kxf8 {[%clk 0:00:28.6]} 37. Qd8+ {[%clk 0:00:35.7]} 37... Kg7 {[%clk
0:00:29.1]} 38. Bb2 {[%clk 0:00:36.6]} 0-1

[Event "Late-Titled-Tuesday-Blitz-February-20-2024"]
[Site "Chess.com"]
[Date "2024.02.20"]
[Round "11"]
[White "Mikhal867"]
[Black "Thjop"]
[Result "0-1"]
[WhiteElo "2455"]
[BlackElo "2625"]
[TimeControl "180+1"]
[EndTime "16:04:25 PST"]
[Termination "Thjop won by checkmate"]

1. c4 {[%clk 0:03:00.9]} 1... Nf6 {[%clk 0:02:59.6]} 2. Nc3 {[%clk 0:03:00.2]}
2... g6 {[%clk 0:02:59.9]} 3. e4 {[%clk 0:02:59.9]} 3... Bg7 {[%clk 0:03:00]} 4.
d4 {[%clk 0:03:00.1]} 4... d6 {[%clk 0:02:59.9]} 5. f3 {[%clk 0:03:00.7]} 5...
O-O {[%clk 0:02:59.6]} 6. Be3 {[%clk 0:03:01.3]} 6... a6 {[%clk 0:02:59.3]} 7.
Qd2 {[%clk 0:02:59.4]} 7... Nc6 {[%clk 0:02:59.2]} 8. Nge2 {[%clk 0:02:58.4]}
8... Na5 {[%clk 0:02:59.2]} 9. Nc1 {[%clk 0:02:57.8]} 9... Nd7 {[%clk
0:02:59.4]} 10. b4 {[%clk 0:02:44.5]} 10... Nc6 {[%clk 0:02:58.9]} 11. Rb1
{[%clk 0:02:38.3]} 11... e5 {[%clk 0:02:57.1]} 12. d5 {[%clk 0:02:38.4]} 12...
Nd4 {[%clk 0:02:57.5]} 13. Nb3 {[%clk 0:02:37.7]} 13... Nxb3 {[%clk 0:02:57.9]}
14. Rxb3 {[%clk 0:02:36.8]} 14... a5 {[%clk 0:02:58.3]} 15. a3 {[%clk
0:02:29.8]} 15... axb4 {[%clk 0:02:58.2]} 16. axb4 {[%clk 0:02:29.6]} 16... f5
{[%clk 0:02:58.3]} 17. Bd3 {[%clk 0:02:27.3]} 17... Nf6 {[%clk 0:02:55.3]} 18.
O-O {[%clk 0:02:24.7]} 18... f4 {[%clk 0:02:55.7]} 19. Bf2 {[%clk 0:02:24.1]}
19... g5 {[%clk 0:02:56.6]} 20. c5 {[%clk 0:02:16.1]} 20... g4 {[%clk 0:02:55]}
21. Be2 {[%clk 0:02:13.1]} 21... h5 {[%clk 0:02:53.3]} 22. b5 {[%clk 0:02:11.4]}
22... dxc5 {[%clk 0:02:41.1]} 23. Bxc5 {[%clk 0:02:08.6]} 23... Rf7 {[%clk
0:02:41.5]} 24. b6 {[%clk 0:02:08.6]} 24... Bf8 {[%clk 0:02:37.7]} 25. Bf2
{[%clk 0:01:56.2]} 25... c6 {[%clk 0:02:29.9]} 26. Rd1 {[%clk 0:01:50.2]} 26...
cxd5 {[%clk 0:02:29.2]} 27. Nxd5 {[%clk 0:01:44.2]} 27... Nxd5 {[%clk 0:02:29]}
28. exd5 {[%clk 0:01:43.6]} 28... Bd6 {[%clk 0:02:24.6]} 29. fxg4 {[%clk
0:01:37.7]} 29... hxg4 {[%clk 0:02:22.3]} 30. Qc2 {[%clk 0:01:27]} 30... Bf5
{[%clk 0:02:09.8]} 31. Bd3 {[%clk 0:01:27]} 31... Qg5 {[%clk 0:02:00.3]} 32.
Bxf5 {[%clk 0:01:25.3]} 32... Qxf5 {[%clk 0:02:01.2]} 33. Qxf5 {[%clk 0:01:20]}
33... Rxf5 {[%clk 0:02:02.1]} 34. Re1 {[%clk 0:01:11.4]} 34... Ra5 {[%clk
0:01:53.8]} 35. Rd3 {[%clk 0:01:05.2]} 35... Kf7 {[%clk 0:01:53]} 36. g3 {[%clk
0:00:55.9]} 36... Kg6 {[%clk 0:01:44.5]} 37. h3 {[%clk 0:00:51.8]} 37... gxh3
{[%clk 0:01:36]} 38. Kh2 {[%clk 0:00:51.3]} 38... Ra2 {[%clk 0:01:31.1]} 39. Rf3
{[%clk 0:00:47.1]} 39... e4 {[%clk 0:01:23.4]} 40. g4 {[%clk 0:00:28]} 40...
exf3 {[%clk 0:01:21.5]} 41. gxf5+ {[%clk 0:00:26.6]} 41... Kxf5 {[%clk
0:01:22.4]} 42. Rf1 {[%clk 0:00:16.7]} 42... Bc5 {[%clk 0:01:16.6]} 43. d6
{[%clk 0:00:16.5]} 43... Bxf2 {[%clk 0:01:16]} 44. Kxh3 {[%clk 0:00:15.3]} 44...
Bg3 {[%clk 0:01:13.2]} 45. Rh1 {[%clk 0:00:13]} 45... Ra8 {[%clk 0:01:12.6]} 46.
Re1 {[%clk 0:00:04.2]} 46... Rh8# {[%clk 0:01:11.8]} 0-1

[Event "Late-Titled-Tuesday-Blitz-February-20-2024"]
[Site "Chess.com"]
[Date "2024.02.20"]
[Round "11"]
[White "Supelyel"]
[Black "jodarmarlon1985"]
[Result "1-0"]
[WhiteElo "2477"]
[BlackElo "2274"]
[TimeControl "180+1"]
[EndTime "16:04:25 PST"]
[Termination "Supelyel won by resignation"]

1. c4 {[%clk 0:03:00.9]} 1... f5 {[%clk 0:02:57.9]} 2. g3 {[%clk 0:02:58.6]}
2... Nf6 {[%clk 0:02:57.9]} 3. Bg2 {[%clk 0:02:58.6]} 3... g6 {[%clk 0:02:58.2]}
4. Nc3 {[%clk 0:02:58.7]} 4... Bg7 {[%clk 0:02:58.2]} 5. Nf3 {[%clk 0:02:59.4]}
5... O-O {[%clk 0:02:57.7]} 6. O-O {[%clk 0:03:00.1]} 6... d6 {[%clk 0:02:58]}
7. d3 {[%clk 0:03:00.7]} 7... e5 {[%clk 0:02:57.3]} 8. Bg5 {[%clk 0:03:01.4]}
8... h6 {[%clk 0:02:53.2]} 9. Bxf6 {[%clk 0:03:01.6]} 9... Qxf6 {[%clk
0:02:53.3]} 10. Rb1 {[%clk 0:03:01.4]} 10... a5 {[%clk 0:02:51.9]} 11. a3 {[%clk
0:03:01.4]} 11... Nc6 {[%clk 0:02:50.5]} 12. Nd2 {[%clk 0:02:58.4]} 12... f4
{[%clk 0:02:21.7]} 13. b4 {[%clk 0:02:50.8]} 13... axb4 {[%clk 0:02:21.3]} 14.
axb4 {[%clk 0:02:51.7]} 14... Nd4 {[%clk 0:02:03.1]} 15. e3 {[%clk 0:02:22.1]}
15... f3 {[%clk 0:01:18.1]} 16. Bh1 {[%clk 0:02:08.4]} 16... Ra3 {[%clk
0:01:05.9]} 17. exd4 {[%clk 0:01:51]} 17... Rxc3 {[%clk 0:01:03.3]} 18. Ne4
{[%clk 0:01:48.1]} 18... Qf5 {[%clk 0:00:40.7]} 19. Nxc3 {[%clk 0:01:47.4]}
19... exd4 {[%clk 0:00:38.5]} 20. Nd5 {[%clk 0:01:47.3]} 20... Qf7 {[%clk
0:00:31.1]} 21. Re1 {[%clk 0:01:39.1]} 21... Be6 {[%clk 0:00:22]} 22. Qxf3
{[%clk 0:00:53.7]} 22... c6 {[%clk 0:00:18.4]} 23. Qxf7+ {[%clk 0:00:52]} 23...
Bxf7 {[%clk 0:00:19.3]} 24. Nf4 {[%clk 0:00:48.3]} 24... g5 {[%clk 0:00:17]} 25.
Ne6 {[%clk 0:00:48.4]} 25... Ra8 {[%clk 0:00:13.6]} 26. Nxg7 {[%clk 0:00:47.5]}
26... Kxg7 {[%clk 0:00:14.5]} 27. b5 {[%clk 0:00:47.4]} 27... Ra3 {[%clk
0:00:10.1]} 28. bxc6 {[%clk 0:00:47.8]} 28... bxc6 {[%clk 0:00:10.1]} 29. Be4
{[%clk 0:00:48.4]} 29... d5 {[%clk 0:00:08.8]} 30. cxd5 {[%clk 0:00:48.6]} 30...
cxd5 {[%clk 0:00:09.7]} 31. Bf5 {[%clk 0:00:49.3]} 31... Kf6 {[%clk 0:00:10]}
32. g4 {[%clk 0:00:49.7]} 32... h5 {[%clk 0:00:10.4]} 33. h3 {[%clk 0:00:49.9]}
33... hxg4 {[%clk 0:00:10.6]} 34. hxg4 {[%clk 0:00:50.8]} 34... Rc3 {[%clk
0:00:05.2]} 35. Rb6+ {[%clk 0:00:50.1]} 35... Kg7 {[%clk 0:00:05.1]} 36. Re7
{[%clk 0:00:48.6]} 36... Kf8 {[%clk 0:00:04.5]} 37. Ra7 {[%clk 0:00:46.8]} 1-0